bitfinex-derivatives/quotes_SOLF0:USTF0_20240913
["timestamp","ask_amount","ask_price","bid_price","bid_amount"]
[1726242144013,3.6685,136.28,136.24,3.6693]
[1726242144816,3.6681,136.29,136.25,3.669]
[1726242145316,3.6684,136.28,136.24,3.6693]
[1726242146606,1.3105,136.32,136.21,28.17]
[1726242146813,1.3105,136.32,136.23,28.17]
[1726242147202,3.6683,136.29,136.25,3.6689]
[1726242147617,3.6683,136.29,136.23,28.17]
[1726242147618,3.6683,136.28,136.24,3.6693]
[1726242148218,1.3105,136.32,136.25,3.6691]
[1726242148219,3.6682,136.29,136.25,3.6691]
[1726242149306,3.6682,136.29,136.21,3.60380218]
[1726242149307,1.3105,136.32,136.26,28.17]
[1726242149709,1.3105,136.32,136.26,31.81207613]
[1726242149913,1.3105,136.32,136.26,28.17]
[1726242150317,3.6684,136.28,136.24,31.8393]
[1726242150517,1.3105,136.32,136.15,7.3436]
[1726242150813,1.3703,136.31,136.2,28.17]
[1726242151019,1.3703,136.31,136.21,7.36566306]
[1726242151211,29.5403,136.31,136.2,28.17]
[1726242151414,3.6693,136.25,136.2,31.8404]
[1726242151807,3.6693,136.25,136.2,28.17]
[1726242152006,3.6693,136.25,136.2,31.8404]
[1726242152614,3.6696,136.24,136.2,31.8404]
[1726242153214,3.6697,136.23,136.18,31.8408]
[1726242153616,3.68876786,136.27,136.18,28.17]
[1726242153818,1.4058,136.28,136.18,31.8408]
[1726242154414,3.6699,136.23,136.18,28.17]
[1726242155117,3.6699,136.23,136.18,31.8408]
[1726242155318,3.6694,136.24,136.18,28.17]
[1726242155618,3.6694,136.24,136.19,3.6706]
[1726242155818,3.6245228,136.27,136.2,28.17]
[1726242156421,3.6696,136.24,136.2,28.17]
[1726242156725,3.6696,136.24,136.19,3.6706]
[1726242156917,1.4058,136.28,136.2,28.17]
[1726242157318,1.4058,136.28,136.24,3.6694]
[1726242157625,3.6681,136.29,136.23,28.17]
[1726242157823,1.3703,136.31,136.25,28.17]
[1726242158026,3.6677,136.31,136.25,28.17]
[1726242158621,3.6677,136.31,136.26,3.6686]
[1726242158927,4.9778,136.32,136.27,28.17]
[1726242159124,1.3105,136.32,136.27,28.17]
[1726242160416,1.4142,136.35,136.27,28.17]
[1726242160617,3.6673,136.32,136.28,3.6683]
[1726242161227,3.6668,136.34,136.3,3.6678]
[1726242161520,1.4142,136.35,136.29,28.17]
[1726242161721,3.6671,136.33,136.29,28.17]
[1726242161929,1.4142,136.35,136.29,28.17]
[1726242162127,1.4142,136.35,136.29,31.8379]
[1726242162518,2.6694,136.37,136.29,31.8379]
[1726242162927,3.6671,136.33,136.29,31.8379]
[1726242163330,3.6672,136.33,136.29,28.17]
[1726242163732,3.6672,136.33,136.29,31.838]
[1726242167036,2.6694,136.37,136.31,28.17]
[1726242167227,2.6694,136.37,136.33,28.17]
[1726242167534,1.3149,136.39,136.33,28.17]
[1726242167735,5.04837864,136.39,136.33,28.17]
[1726242168035,3.6664,136.36,136.31,31.8374]
[1726242168227,5.0300305,136.39,136.29,28.17]
[1726242168628,3.6669,136.34,136.29,31.8378]
[1726242169034,3.6669,136.34,136.29,28.17]
[1726242169231,3.6669,136.34,136.3,3.6676]
[1726242169428,5.0300305,136.39,136.29,28.17]
[1726242170232,5.0300305,136.39,136.29,31.838]
[1726242170837,3.6669,136.34,136.3,3.6676]
[1726242171333,3.6673,136.32,136.29,28.17]
[1726242173039,3.6676,136.31,136.27,28.17]
[1726242173739,3.6674,136.32,136.27,28.17]
[1726242173935,28.17,136.38,136.27,28.17]
[1726242174947,3.6671,136.33,136.29,3.668]
[1726242175444,3.6668,136.34,136.3,3.6678]
[1726242175939,5.0300305,136.39,136.3,3.6678]
[1726242176134,5.0300305,136.39,136.31,28.17]
[1726242176629,5.0300305,136.39,136.31,31.8374]
[1726242176829,5.0300305,136.39,136.31,28.17]
[1726242177748,5.0300305,136.39,136.31,31.8374]
[1726242178138,3.6664,136.36,136.31,31.8374]
[1726242178839,5.0300305,136.39,136.31,28.17]
[1726242179340,5.0300305,136.39,136.32,3.6671]
[1726242179539,3.6659,136.37,136.32,3.6671]
[1726242179843,5.0300305,136.39,136.32,3.6671]
[1726242180044,3.6659,136.37,136.32,3.6671]
[1726242180243,5.0300305,136.39,136.32,3.6671]
[1726242180644,1.3149,136.39,136.33,28.17]
[1726242181145,2.7904,136.43,136.33,31.8368]
[1726242181338,1.4308,136.42,136.33,31.8724738]
[1726242181647,1.4308,136.42,136.34,3.6666]
[1726242181841,5.02729258,136.42,136.34,3.6666]
[1726242182040,5.02729258,136.42,136.36,28.17]
[1726242182936,1.4308,136.42,136.36,28.17]
[1726242183342,3.6655,136.39,136.36,28.17]
[1726242185642,1.4308,136.42,136.36,28.17]
[1726242185844,1.3726,136.43,136.38,28.17]
[1726242186048,1.3726,136.43,136.4,28.17]
[1726242186340,1.3887,136.48,136.4,28.17]
[1726242186544,3.6637,136.46,136.41,3.6646]
[1726242186848,1.3887,136.48,136.4,31.86872448]
[1726242187144,1.3887,136.48,136.4,28.17]
[1726242188744,1.3887,136.48,136.41,3.6647]
[1726242189040,1.3887,136.48,136.4,28.17]
[1726242189244,3.6647,136.42,136.4,28.17]
[1726242189445,1.3887,136.48,136.4,28.17]
[1726242189841,3.6642,136.44,136.41,3.6647]
[1726242190041,1.3887,136.48,136.42,28.17]
[1726242190249,1.3631,136.49,136.44,28.17]
[1726242190549,1.3631,136.49,136.42,31.8343]
[1726242190738,1.3631,136.49,136.42,28.17]
[1726242190938,3.6634,136.47,136.42,28.17]
[1726242191143,3.6634,136.47,136.44,28.17]
[1726242193341,3.6637,136.46,136.44,28.17]
[1726242193545,1.3631,136.49,136.44,28.17]
[1726242193850,3.6633,136.47,136.44,28.17]
[1726242194441,3.6633,136.47,136.45,17.58]
[1726242195552,1.342,136.51,136.45,17.58]
[1726242195760,1.3777,136.53,136.47,17.58]
[1726242196640,3.6628,136.49,136.47,17.58]
[1726242197245,22.61622837,136.53,136.45,17.58]
[1726242197445,24.05252837,136.53,136.45,17.58]
[1726242197746,3.6635,136.46,136.45,17.58]
[1726242197945,24.05252837,136.53,136.43,17.58]
[1726242198250,17.58,136.51,136.43,17.58]
[1726242198548,3.664,136.44,136.42,17.58]
[1726242199142,17.58,136.5,136.42,17.58]
[1726242199347,17.58,136.52,136.44,17.58]
[1726242199650,6.47252837,136.53,136.45,17.58]
[1726242199854,6.47252837,136.53,136.47,17.58]
[1726242200354,3.6627,136.49,136.47,17.58]
[1726242200549,6.47252837,136.53,136.47,17.58]
[1726242200941,3.6629,136.48,136.47,17.58]
[1726242201151,6.47252837,136.53,136.45,17.58]
[1726242201654,3.6631,136.48,136.45,17.58]
[1726242201953,3.6631,136.48,136.45,21.2436]
[1726242202148,3.6631,136.48,136.44,28.13]
[1726242202450,6.47252837,136.53,136.44,28.13]
[1726242202451,3.6633,136.47,136.44,28.13]
[1726242202848,28.13,136.45,136.34,28.13]
[1726242203058,1.4334,136.44,136.34,31.79312353]
[1726242203349,1.4334,136.44,136.36,28.13]
[1726242203550,1.4334,136.44,136.38,28.13]
[1726242203951,1.4334,136.44,136.36,28.13]
[1726242204444,1.4334,136.44,136.39,28.13]
[1726242204445,3.6642,136.44,136.39,28.13]
[1726242205048,3.664,136.45,136.4,3.6649]
[1726242205241,3.664,136.45,136.41,31.88172475]
[1726242205445,3.664,136.45,136.41,28.13]
[1726242205647,3.664,136.45,136.41,31.74717154]
[1726242206954,3.6636,136.46,136.41,31.74717154]
[1726242207351,1.4352,136.49,136.41,31.74717154]
[1726242207552,3.6634,136.47,136.42,3.6644]
[1726242207855,3.6634,136.47,136.43,28.13]
[1726242208056,3.6635,136.46,136.43,28.13]
[1726242208260,3.6635,136.46,136.41,31.74717154]
[1726242208849,3.64760183,136.51,136.42,3.6644]
[1726242209053,1.4462,136.52,136.43,28.13]
[1726242209652,3.6633,136.47,136.43,35.47462353]
[1726242209851,3.6633,136.47,136.43,3.68052353]
[1726242210153,3.6633,136.47,136.43,28.13]
[1726242210352,3.6635,136.46,136.43,31.87540926]
[1726242211257,3.73734436,136.51,136.43,31.87540926]
[1726242211660,1.4462,136.52,136.44,3.6638]
[1726242211661,3.663,136.48,136.44,3.6638]
[1726242211859,3.663,136.48,136.45,3.58312368]
[1726242212658,3.6632,136.47,136.43,31.7941]
[1726242212859,3.66082645,136.51,136.35,7.3325]
[1726242213062,1.3727,136.5,136.41,28.13]
[1726242213267,3.6637,136.46,136.42,3.60878026]
[1726242213562,3.6637,136.46,136.42,7.27328026]
[1726242213863,28.13,136.46,136.28,7.348]
[1726242214168,28.13,136.43,136.32,28.13]
[1726242214465,1.4394,136.42,136.32,28.13]
[1726242214769,5.1747109,136.42,136.32,31.86200953]
[1726242215065,3.6663,136.36,136.32,31.86200953]
[1726242215263,28.13,136.41,136.32,3.73200953]
[1726242215458,28.13,136.41,136.29,28.13]
[1726242215666,28.13,136.41,136.29,31.71088039]
[1726242216163,3.6663,136.36,136.29,31.71088039]
[1726242216363,28.13,136.41,136.3,3.6677]
[1726242216757,3.6664,136.35,136.3,3.6677]
[1726242216961,28.13,136.41,136.29,31.71088039]
[1726242217360,28.13,136.39,136.27,28.13]
[1726242217566,2.7598,136.38,136.28,3.61389404]
[1726242217958,3.6672,136.33,136.28,3.61389404]
[1726242219065,3.6672,136.33,136.28,7.28219404]
[1726242219267,3.6675,136.32,136.27,28.13]
[1726242219567,2.7598,136.38,136.28,3.68413019]
[1726242219964,2.7598,136.38,136.27,28.13]
[1726242220170,2.7598,136.38,136.28,3.6682]
[1726242220670,2.7598,136.38,136.27,31.71984404]
[1726242221567,3.6671,136.33,136.28,3.6683]
[1726242222265,3.6671,136.33,136.29,3.668]
[1726242222472,3.6671,136.33,136.27,31.71984404]
[1726242222859,3.6671,136.33,136.28,3.6682]
[1726242223269,3.6671,136.33,136.29,3.668]
[1726242223465,2.7598,136.38,136.29,3.668]
[1726242223771,2.7598,136.38,136.28,31.7981]
[1726242223969,2.7598,136.38,136.31,28.13]
[1726242224267,2.7598,136.38,136.32,17.61]
[1726242224474,3.6664,136.36,136.32,17.61]
[1726242224769,2.7598,136.38,136.32,17.61]
[1726242224975,3.6666,136.35,136.32,17.61]
[1726242225370,1.3193,136.38,136.32,17.61]
[1726242225680,3.6663,136.36,136.32,17.61]
[1726242225967,1.3193,136.38,136.34,17.61]
[1726242226167,3.6661,136.37,136.34,17.61]
[1726242226374,3.6661,136.37,136.34,21.35833281]
[1726242226674,24.1276109,136.42,136.34,21.35833281]
[1726242227075,3.6661,136.37,136.34,21.35833281]
[1726242227470,24.1276109,136.42,136.34,17.61]
[1726242227678,24.1276109,136.42,136.33,3.75549468]
[1726242227975,24.1276109,136.42,136.32,17.61]
[1726242228774,17.61,136.38,136.3,17.61]
[1726242228976,1.3731,136.37,136.3,17.61]
[1726242229974,1.3731,136.37,136.19,7.3411]
[1726242229975,18.9831,136.37,136.19,14.6891]
[1726242230175,18.9831,136.37,136.27,17.61]
[1726242230380,1.3731,136.37,136.28,3.75439411]
[1726242230579,3.6677,136.31,136.28,3.75439411]
[1726242230781,3.6677,136.31,136.27,17.61]
[1726242230977,3.6677,136.31,136.28,3.67926506]
[1726242231281,3.6674,136.32,136.28,3.67926506]
[1726242233084,1.4227,136.34,136.28,3.67926506]
[1726242233293,3.6679,136.3,136.25,3.669]
[1726242233488,3.6679,136.3,136.26,17.61]
[1726242233879,3.6676,136.31,136.26,21.2787]
[1726242234682,3.6676,136.31,136.27,3.6686]
[1726242234881,3.6676,136.31,136.26,17.61]
[1726242235088,3.6676,136.31,136.26,21.2786]
[1726242235288,3.6676,136.31,136.28,17.61]
[1726242235491,3.6673,136.32,136.28,17.61]
[1726242235878,3.6671,136.33,136.3,17.61]
[1726242236184,3.73136994,136.35,136.3,17.61]
[1726242236381,3.6672,136.33,136.3,17.61]
[1726242236581,3.75210218,136.35,136.3,17.61]
[1726242236785,18.9831,136.37,136.3,17.61]
[1726242237088,18.9831,136.37,136.29,3.72714688]
[1726242237288,18.9831,136.37,136.28,21.2782]
[1726242237878,3.6672,136.33,136.29,3.70788212]
[1726242238082,3.66972462,136.35,136.29,3.70788212]
[1726242238281,3.6673,136.32,136.29,3.70788212]
[1726242239093,3.69467376,136.35,136.28,17.61]
[1726242239281,18.9831,136.37,136.29,3.70384623]
[1726242239590,18.9831,136.37,136.28,21.2783]
[1726242239979,18.9831,136.37,136.28,21.29146539]
[1726242240180,17.61,136.29,136.15,7.3436]
[1726242240385,1.4038,136.28,136.2,17.61]
[1726242240804,3.669,136.26,136.21,3.6701]
[1726242240995,19.0138,136.28,136.2,17.61]
[1726242241386,3.6687,136.27,136.22,17.61]
[1726242241582,1.4038,136.28,136.22,21.26262126]
[1726242242191,1.4038,136.28,136.22,24.93242126]
[1726242242192,3.6687,136.27,136.22,24.93242126]
[1726242242591,5.0723,136.28,136.23,3.6696]
[1726242242787,21.34924759,136.33,136.22,3.65262126]
[1726242242987,17.61,136.33,136.25,17.61]
[1726242243188,3.73557698,136.32,136.25,21.36576532]
[1726242243592,3.6685,136.28,136.25,17.61]
[1726242244094,3.73557698,136.32,136.25,17.61]
[1726242244491,17.61,136.33,136.25,17.61]
[1726242244793,1.4363,136.34,136.23,21.2795]
[1726242244794,3.6687,136.27,136.23,21.2795]
[1726242244984,3.6687,136.27,136.23,24.9494707]
[1726242245496,3.67,136.22,136.18,17.61]
[1726242245892,3.67,136.22,136.18,21.2808]
[1726242246389,3.6698,136.23,136.18,21.2808]
[1726242246590,18.9446,136.26,136.18,21.2808]
[1726242247502,20.2583,136.26,136.18,21.2808]
[1726242247691,17.61,136.24,136.17,3.60647386]
[1726242247893,17.61,136.24,136.16,21.2814]
[1726242248090,3.6701,136.22,136.17,3.65075703]
[1726242248306,2.6483,136.26,136.18,3.75099405]
[1726242248501,2.6483,136.26,136.16,28.2]
[1726242248787,2.6483,136.26,136.15,1.1851]
[1726242249003,2.6483,136.26,136.16,28.2]
[1726242249198,3.6701,136.22,136.17,3.6711]
[1726242249393,3.6701,136.22,136.17,7.26935192]
[1726242249596,3.6701,136.22,136.17,3.59825192]
[1726242249795,3.6701,136.22,136.17,3.6711]
[1726242250001,3.6701,136.22,136.18,3.62689107]
[1726242251503,3.6701,136.22,136.18,7.29789107]
[1726242251696,3.6701,136.22,136.18,3.671]
[1726242252001,3.6701,136.22,136.18,7.3239582]
[1726242252502,3.6698,136.23,136.19,3.6707]
[1726242253093,2.6483,136.26,136.19,7.39452882]
[1726242253291,2.6483,136.26,136.19,3.6707]
[1726242253496,1.3346,136.26,136.13,7.348]
[1726242253700,28.2,136.23,136.13,3.616876]
[1726242253900,28.2,136.23,136.14,3.6719]
[1726242254100,31.85322836,136.23,136.15,3.59925062]
[1726242254601,2.7143,136.25,136.13,28.2]
[1726242254602,30.9143,136.25,136.13,28.2]
[1726242254800,6.42738123,136.25,136.15,28.2]
[1726242255108,2.7143,136.25,136.18,3.6709]
[1726242255303,30.9143,136.25,136.15,4.84877545]
[1726242255908,30.9143,136.25,136.15,8.52057545]
[1726242256403,3.6706,136.2,136.15,8.52057545]
[1726242256907,3.6703,136.21,136.15,4.84877545]
[1726242257108,3.6703,136.21,136.15,33.04877545]
[1726242257603,3.6701,136.22,136.15,33.04877545]
[1726242257999,2.7143,136.25,136.17,3.6711]
[1726242258206,2.7143,136.25,136.15,33.04877545]
[1726242258207,30.9143,136.25,136.15,4.84877545]
[1726242258606,3.6706,136.2,136.15,8.52047545]
[1726242258804,30.9143,136.25,136.15,8.52047545]
[1726242259105,30.9143,136.25,136.16,3.6715]
[1726242259303,3.6701,136.22,136.15,4.84877545]
[1726242259506,30.9143,136.25,136.15,4.84877545]
[1726242259810,3.6701,136.22,136.15,4.84877545]
[1726242260002,30.9143,136.25,136.15,4.84877545]
[1726242260407,2.7143,136.25,136.15,3.66277545]
[1726242260610,28.2,136.23,136.1,1.1866]
[1726242260908,28.2,136.23,136.1,32.97326223]
[1726242261105,28.2,136.23,136.12,3.6726]
[1726242261301,28.2,136.23,136.1,32.97326223]
[1726242261808,3.6714,136.17,136.12,3.6724]
[1726242262298,3.6717,136.16,136.1,32.97326223]
[1726242262704,28.2,136.23,136.13,3.6722]
[1726242262901,28.2,136.23,136.12,28.2]
[1726242263108,30.9143,136.25,136.12,28.2]
[1726242263503,30.9143,136.25,136.13,1.3213]
[1726242263704,3.6701,136.22,136.13,1.3213]
[1726242263911,2.7143,136.25,136.15,28.2]
[1726242264907,2.7143,136.25,136.13,1.3213]
[1726242264908,28.2,136.23,136.13,1.3213]
[1726242265311,3.6712,136.18,136.13,4.9935]
[1726242266219,28.2,136.23,136.13,1.3213]
[1726242266603,3.6712,136.18,136.13,4.9936]
[1726242267814,3.6715,136.17,136.13,1.3213]
[1726242268012,28.2,136.23,136.1,3.58666223]
[1726242268213,28.2,136.2,136.09,194.01039028]
[1726242268415,3.6488917,136.19,136.1,1.3331]
[1726242269222,28.2,136.18,136.09,3.63199698]
[1726242269515,8.01567382,136.18,136.1,28.2]
[1726242269723,8.01567382,136.18,136.11,3.6428813]
[1726242269916,4.2666,136.18,136.11,3.6428813]
[1726242270434,3.69358915,136.17,136.11,3.6428813]
[1726242270640,4.2666,136.18,136.08,28.2]
[1726242270850,3.68403549,136.17,136.08,31.96524154]
[1726242271013,4.2666,136.18,136.08,31.96524154]
[1726242271416,3.6717,136.16,136.08,31.96524154]
[1726242271618,4.2666,136.18,136.08,31.96524154]
[1726242271915,3.6717,136.16,136.08,31.96524154]
[1726242272317,3.6717,136.16,136.1,3.6729]
[1726242272617,3.6719,136.15,136.1,3.6729]
[1726242272820,17.64,136.16,136.04,1.3331]
[1726242273213,3.672,136.15,136.07,17.64]
[1726242273421,17.64,136.16,136.07,17.64]
[1726242273711,3.6719,136.15,136.04,1.3331]
[1726242273915,3.6719,136.15,136.09,17.64]
[1726242274221,3.6719,136.15,136.1,3.71793047]
[1726242274414,3.6719,136.15,136.1,7.39093047]
[1726242274609,3.6719,136.15,136.1,3.673]
[1726242275316,17.64,136.14,136.08,3.66612927]
[1726242275509,17.64,136.14,136.05,17.64]
[1726242276114,3.6725,136.13,136.05,17.64]
[1726242276521,21.3122,136.14,136.08,3.6735]
[1726242276720,25.04243506,136.14,136.08,3.58436199]
[1726242276925,17.64,136.17,136.09,17.64]
[1726242277118,21.38236052,136.17,136.09,17.64]
[1726242277428,3.6718,136.16,136.09,17.64]
[1726242277716,21.3119,136.15,136.08,3.5873015]
[1726242277926,17.64,136.14,136.07,2.5076]
[1726242278321,21.3123,136.14,136.09,3.6734]
[1726242278521,21.3123,136.14,136.09,7.40253274]
[1726242278825,3.6723,136.14,136.09,7.40253274]
[1726242279022,21.3119,136.15,136.1,3.6731]
[1726242279219,17.64,136.15,136.1,3.6731]
[1726242279518,4.2666,136.18,136.1,17.64]
[1726242279725,2.8457,136.18,136.1,17.64]
[1726242279919,17.64,136.17,136.07,2.5076]
[1726242280124,17.64,136.17,136.11,3.6727]
[1726242280325,17.64,136.17,136.11,7.38456313]
[1726242280520,2.8457,136.18,136.1,17.64]
[1726242280821,2.8457,136.18,136.1,21.38970929]
[1726242281017,2.8457,136.18,136.12,3.6725]
[1726242282432,2.8457,136.18,136.11,3.6728]
[1726242282930,2.8457,136.18,136.1,21.38970929]
[1726242283125,2.8457,136.18,136.11,3.6727]
[1726242283734,2.8457,136.18,136.12,3.6726]
[1726242284724,2.8457,136.18,136.11,3.6728]
[1726242284931,2.8457,136.18,136.1,21.38970929]
[1726242285926,2.8457,136.18,136.1,17.64]
[1726242286231,17.64,136.17,136.1,17.64]
[1726242286532,17.64,136.17,136.11,3.6727]
[1726242287128,17.64,136.17,136.1,25.06327617]
[1726242287527,17.64,136.17,136.1,21.39017617]
[1726242287829,17.64,136.17,136.11,3.6727]
[1726242288027,17.64,136.17,136.1,21.39017617]
[1726242288736,17.64,136.17,136.12,3.6725]
[1726242289336,17.64,136.17,136.11,3.6727]
[1726242290425,17.64,136.17,136.1,25.06317617]
[1726242290932,17.64,136.17,136.1,21.39017617]
[1726242291133,17.64,136.17,136.11,3.6729]
[1726242291332,17.64,136.17,136.1,21.39017617]
[1726242291838,17.64,136.17,136.11,3.6727]
[1726242292929,17.64,136.15,136.07,2.5076]
[1726242293734,17.64,136.15,136.09,3.6733]
[1726242294636,17.64,136.14,136.09,3.6733]
[1726242295036,17.64,136.14,136.1,3.6732]
[1726242296138,19.0467,136.17,136.08,21.25212375]
[1726242296325,19.0467,136.17,136.08,17.64]
[1726242296637,17.64,136.15,136.08,3.59674408]
[1726242296841,21.312,136.15,136.07,2.5076]
[1726242297029,17.64,136.15,136.07,1.3212]
[1726242297231,17.64,136.15,136.09,3.6733]
[1726242297430,17.64,136.15,136.09,7.41373744]
[1726242297636,3.6722,136.14,136.09,7.41373744]
[1726242297924,17.64,136.15,136.09,7.41373744]
[1726242298129,17.64,136.14,136.09,7.41373744]
[1726242298329,21.3123,136.14,136.09,7.41373744]
[1726242298530,17.64,136.14,136.03,1.415]
[1726242298731,17.64,136.14,136.05,17.64]
[1726242298927,21.3123,136.14,136.05,17.64]
[1726242299136,17.64,136.12,136.03,19.055]
[1726242299341,1.4067,136.17,136.03,19.055]
[1726242299342,17.64,136.11,136.03,19.055]
[1726242299542,21.3131,136.11,136.03,19.055]
[1726242299740,17.64,136.11,136.05,3.6743]
[1726242299941,2.8204,136.11,136.05,3.6743]
[1726242300242,21.3133,136.1,136.05,3.6743]
[1726242300739,4.224,136.11,135.92,3.24733134]
[1726242300932,17.64,136.03,135.94,20.1665]
[1726242301241,3.61496112,136.05,136.0,3.63921027]
[1726242301444,3.61496112,136.05,135.94,1.3416]
[1726242301445,3.676,136.0,135.94,1.3416]
[1726242301643,17.64,136.01,135.95,3.70497692]
[1726242301838,17.64,136.0,135.92,3.24733134]
[1726242302138,17.64,136.0,135.92,3.70970676]
[1726242302340,17.64,136.0,135.91,18.9816]
[1726242302541,17.64,136.0,135.94,3.6773]
[1726242302742,17.64,136.0,135.91,22.5787465]
[1726242302943,1.3747,136.02,135.91,22.5787465]
[1726242303147,7.3421,136.18,135.96,17.64]
[1726242303451,21.3142,136.07,136.0,3.6756]
[1726242303656,21.3142,136.07,136.0,7.41252722]
[1726242303857,21.3142,136.07,136.0,3.73692722]
[1726242304038,21.3142,136.07,135.98,17.64]
[1726242304240,28.24,136.07,136.01,3.6754]
[1726242304441,28.24,136.07,136.0,3.7016142]
[1726242304640,28.24,136.07,135.97,1.1891]
[1726242304935,28.24,136.05,135.92,7.348]
[1726242305143,28.24,136.05,135.96,3.6767]
[1726242305737,28.24,136.05,135.97,3.6766]
[1726242305943,1.4166,136.04,135.94,28.24]
[1726242306538,1.4166,136.04,135.8,7.348]
[1726242306539,11.0,135.98,135.8,7.348]
[1726242306743,2.8022,135.97,135.86,29.6512]
[1726242306948,1.4166,135.97,135.9,28.24]
[1726242307248,3.6756,136.01,135.91,1.3372]
[1726242307848,3.6756,136.01,135.92,28.24]
[1726242308053,3.6756,136.01,135.92,29.5967]
[1726242308359,3.6756,136.01,135.94,3.6773]
[1726242309051,3.6756,136.01,135.94,7.27838992]
[1726242309544,3.676,136.0,135.94,7.27838992]
[1726242310348,2.8022,136.03,135.97,3.6767]
[1726242310652,2.8022,136.03,135.94,3.60108992]
[1726242310854,3.6755,136.02,135.92,30.9627]
[1726242311152,31.0422,136.03,135.92,30.9627]
[1726242311644,28.24,136.01,135.92,2.7227]
[1726242311839,31.0422,136.03,135.92,30.9627]
[1726242312242,3.6755,136.02,135.92,30.9627]
[1726242312446,31.0422,136.03,135.92,30.9627]
[1726242312646,2.8022,136.03,135.94,28.24]
[1726242312853,6.4774,136.03,135.97,3.6765]
[1726242313050,6.4774,136.03,135.94,31.84213404]
[1726242313255,2.8022,136.03,135.94,31.84213404]
[1726242313552,28.24,136.11,135.99,28.24]
[1726242313753,28.24,136.11,136.01,28.24]
[1726242313754,3.76800728,136.11,136.01,28.24]
[1726242313945,4.2736,136.13,136.03,3.6749]
[1726242314145,28.24,136.12,136.03,3.58742245]
[1726242314452,28.24,136.12,136.01,28.24]
[1726242314647,28.24,136.12,135.67,574.74199402]
[1726242314648,28.24,136.03,135.84,11.0405]
[1726242314853,3.6762,135.99,135.94,3.6774]
[1726242315046,28.24,136.0,135.92,3.58899735]
[1726242315250,28.24,136.0,135.89,29.6369]
[1726242315452,3.6767,135.97,135.91,3.6781]
[1726242315648,28.24,136.0,135.91,3.70557816]
[1726242315846,28.24,136.0,135.89,29.6369]
[1726242316047,31.916,136.0,135.91,28.24]
[1726242316249,31.916,136.0,135.92,1.436]
[1726242316551,3.6761,135.99,135.94,3.6773]
[1726242316756,3.6761,135.99,135.92,1.436]
[1726242317057,31.916,136.0,135.94,3.6775]
[1726242317253,31.916,136.0,135.92,1.436]
[1726242317755,31.916,136.0,135.94,3.6773]
[1726242318348,3.6764,135.99,135.92,1.436]
[1726242318659,28.24,136.0,135.92,1.436]
[1726242318847,28.24,136.0,135.93,3.6777]
[1726242319052,28.24,136.0,135.92,1.436]
[1726242319260,28.24,136.0,135.92,5.114]
[1726242319559,28.24,136.0,135.92,1.436]
[1726242319761,28.24,136.0,135.92,5.16640464]
[1726242319951,28.24,136.0,135.92,1.436]
[1726242320147,28.24,136.0,135.92,5.114]
[1726242320552,28.24,136.0,135.93,3.60275939]
[1726242321244,28.24,136.0,135.92,1.436]
[1726242321662,28.24,136.0,135.92,5.1214298]
[1726242322063,3.6766,135.98,135.93,3.6777]
[1726242322251,28.24,136.0,135.92,5.1214298]
[1726242322450,3.6766,135.98,135.93,3.6777]